[Event "*** Titled Tuesday 3|2 Blitz"]
[Site "Chess.com"]
[Date "2016.03.01"]
[Round "2"]
[White "gumersindo"]
[Black "thegreendog"]
[Result "0-1"]
[WhiteElo "2323"]
[BlackElo "2242"]
[TimeControl "180+2"]
[EndTime "17:16:08 PST"]
[Termination "thegreendog won by resignation"]

1. d4 {[%clk 0:03:01.9]} 1... d5 {[%clk 0:02:57]} 2. c4 {[%clk 0:03:02.8]} 2...
c6 {[%clk 0:02:56.9]} 3. Nc3 {[%clk 0:03:03.4]} 3... Nf6 {[%clk 0:02:56.5]} 4.
Nf3 {[%clk 0:03:04.4]} 4... dxc4 {[%clk 0:02:54.4]} 5. a4 {[%clk 0:03:05.3]}
5... Bf5 {[%clk 0:02:54.8]} 6. Ne5 {[%clk 0:03:06.3]} 6... Nbd7 {[%clk
0:02:54.9]} 7. Nxc4 {[%clk 0:03:06.4]} 7... Nb6 {[%clk 0:02:56]} 8. Ne5 {[%clk
0:03:05.9]} 8... a5 {[%clk 0:02:57.1]} 9. f3 {[%clk 0:03:06.7]} 9... Nfd7 {[%clk
0:02:58.1]} 10. Nxd7 {[%clk 0:03:07.4]} 10... Qxd7 {[%clk 0:02:57.8]} 11. e4
{[%clk 0:03:06.8]} 11... Bg6 {[%clk 0:02:58.7]} 12. Be3 {[%clk 0:03:08.3]} 12...
e6 {[%clk 0:02:53.5]} 13. d5 {[%clk 0:03:04.2]} 13... Nc8 {[%clk 0:02:53]} 14.
dxc6 {[%clk 0:03:04.5]} 14... Qxd1+ {[%clk 0:02:52.8]} 15. Rxd1 {[%clk
0:03:06.4]} 15... bxc6 {[%clk 0:02:53.9]} 16. Bc4 {[%clk 0:03:04.7]} 16... Rb8
{[%clk 0:02:51.2]} 17. b3 {[%clk 0:03:01.9]} 17... Bb4 {[%clk 0:02:51.7]} 18.
Kd2 {[%clk 0:03:03.1]} 18... Ke7 {[%clk 0:02:50.1]} 19. Kc2 {[%clk 0:03:03.5]}
19... Nb6 {[%clk 0:02:46.8]} 20. Be2 {[%clk 0:02:57.8]} 20... Nd7 {[%clk
0:02:45.2]} 21. Na2 {[%clk 0:02:55.4]} 21... Bd6 {[%clk 0:02:43.7]} 22. Bd2
{[%clk 0:02:51.8]} 22... Bc7 {[%clk 0:02:35.7]} 23. Bc3 {[%clk 0:02:50.2]} 23...
f5 {[%clk 0:02:34.7]} 24. Bxg7 {[%clk 0:02:45.4]} 24... Rhg8 {[%clk 0:02:35.3]}
25. Bc3 {[%clk 0:02:37]} 25... fxe4 {[%clk 0:02:36.2]} 26. Kb2 {[%clk
0:02:31.4]} 26... Nc5 {[%clk 0:02:34.7]} 27. Bc4 {[%clk 0:02:24.7]} 27... Nxa4+
{[%clk 0:02:35.4]} 28. Ka3 {[%clk 0:02:25.5]} 28... Nxc3 {[%clk 0:02:33.4]} 29.
Nxc3 {[%clk 0:02:27.4]} 29... exf3 {[%clk 0:02:30.1]} 30. gxf3 {[%clk
0:02:28.7]} 30... Bd6+ {[%clk 0:02:30.4]} 31. Ka2 {[%clk 0:02:27.9]} 31... Be5
{[%clk 0:02:18.4]} 32. Ne4 {[%clk 0:02:25.8]} 32... Bxe4 {[%clk 0:02:16.9]} 33.
fxe4 {[%clk 0:02:25.7]} 33... Rg2+ {[%clk 0:02:17.9]} 34. Kb1 {[%clk 0:02:24.5]}
34... a4 {[%clk 0:02:14.6]} 35. Rd3 {[%clk 0:02:24]} 35... a3 {[%clk 0:02:14.6]}
0-1

[Event "*** Titled Tuesday 3|2 Blitz"]
[Site "Chess.com"]
[Date "2016.03.01"]
[Round "2"]
[White "GMHess"]
[Black "Kanthecarowin"]
[Result "1-0"]
[WhiteElo "2627"]
[BlackElo "2191"]
[TimeControl "180+2"]
[EndTime "17:16:55 PST"]
[Termination "GMHess won by resignation"]

1. b3 {[%clk 0:02:53.6]} 1... e6 {[%clk 0:02:56.2]} 2. Bb2 {[%clk 0:02:55.5]}
2... Nf6 {[%clk 0:02:56.9]} 3. Nf3 {[%clk 0:02:54.9]} 3... g6 {[%clk 0:02:58]}
4. e3 {[%clk 0:02:54.3]} 4... Bg7 {[%clk 0:02:59.1]} 5. d4 {[%clk 0:02:55.5]}
5... O-O {[%clk 0:03:00.1]} 6. Be2 {[%clk 0:02:56.7]} 6... d5 {[%clk 0:03:01.5]}
7. O-O {[%clk 0:02:58.4]} 7... c5 {[%clk 0:03:01.7]} 8. dxc5 {[%clk 0:02:59.1]}
8... Nbd7 {[%clk 0:03:02.8]} 9. b4 {[%clk 0:02:58.3]} 9... a5 {[%clk 0:03:03.3]}
10. a3 {[%clk 0:02:58.1]} 10... Ne4 {[%clk 0:03:01.9]} 11. Bxg7 {[%clk
0:02:57.3]} 11... Kxg7 {[%clk 0:03:03.8]} 12. c3 {[%clk 0:02:35]} 12... Qf6
{[%clk 0:03:02.9]} 13. Qd4 {[%clk 0:02:33.1]} 13... Qxd4 {[%clk 0:02:58.8]} 14.
exd4 {[%clk 0:02:24.8]} 14... f5 {[%clk 0:02:51.1]} 15. Nfd2 {[%clk 0:02:11.3]}
15... Ndf6 {[%clk 0:02:23.4]} 16. f3 {[%clk 0:02:05.2]} 16... Nxd2 {[%clk
0:02:19.8]} 17. Nxd2 {[%clk 0:02:07.1]} 17... g5 {[%clk 0:02:20]} 18. Nb3 {[%clk
0:01:58.4]} 18... a4 {[%clk 0:02:18.4]} 19. Na5 {[%clk 0:01:59.5]} 19... g4
{[%clk 0:02:15.7]} 20. fxg4 {[%clk 0:01:51.6]} 20... fxg4 {[%clk 0:02:17.6]} 21.
Bb5 {[%clk 0:01:42.1]} 21... Ne4 {[%clk 0:02:01.5]} 22. Rxf8 {[%clk 0:01:42.1]}
22... Kxf8 {[%clk 0:02:03.4]} 23. Rc1 {[%clk 0:01:36.7]} 23... Ke7 {[%clk
0:02:00.5]} 24. Bxa4 {[%clk 0:01:36.9]} 24... Bd7 {[%clk 0:01:57.4]} 25. Bxd7
{[%clk 0:01:35.4]} 25... Kxd7 {[%clk 0:01:59.3]} 26. c4 {[%clk 0:01:30.3]} 26...
Kc7 {[%clk 0:01:58.2]} 27. Rf1 {[%clk 0:01:21.8]} 27... dxc4 {[%clk 0:01:53.9]}
28. Rf7+ {[%clk 0:01:22.1]} 1-0

[Event "*** Titled Tuesday 3|2 Blitz"]
[Site "Chess.com"]
[Date "2016.03.01"]
[Round "2"]
[White "Shivagami"]
[Black "ethylalcohol"]
[Result "1-0"]
[WhiteElo "1811"]
[BlackElo "1690"]
[TimeControl "180+2"]
[EndTime "17:19:46 PST"]
[Termination "Shivagami won on time"]

1. e4 {[%clk 0:03:01.9]} 1... e5 {[%clk 0:02:59.9]} 2. Nc3 {[%clk 0:03:01.9]}
2... Nf6 {[%clk 0:02:59.8]} 3. Bc4 {[%clk 0:03:01.5]} 3... Bc5 {[%clk
0:02:52.7]} 4. d3 {[%clk 0:03:00.8]} 4... O-O {[%clk 0:02:43.8]} 5. f4 {[%clk
0:03:00.5]} 5... d5 {[%clk 0:02:25.4]} 6. Nxd5 {[%clk 0:02:51.7]} 6... Ng4
{[%clk 0:02:17.1]} 7. Nh3 {[%clk 0:02:35.6]} 7... Qh4+ {[%clk 0:02:13.8]} 8. Kd2
{[%clk 0:02:12.8]} 8... c6 {[%clk 0:01:44.6]} 9. Nc7 {[%clk 0:02:07.2]} 9...
exf4 {[%clk 0:01:26.9]} 10. Nxa8 {[%clk 0:01:52.7]} 10... Ne3 {[%clk 0:01:01.1]}
11. Qe1 {[%clk 0:01:47.6]} 11... Nxc4+ {[%clk 0:00:54.3]} 12. Kc3 {[%clk
0:01:42.3]} 12... Qf6+ {[%clk 0:00:43]} 13. Kb3 {[%clk 0:01:43]} 13... Na5+
{[%clk 0:00:37.6]} 14. Qxa5 {[%clk 0:01:42.6]} 14... Be6+ {[%clk 0:00:37.8]} 15.
c4 {[%clk 0:01:41.1]} 15... Na6 {[%clk 0:00:35.7]} 16. Nc7 {[%clk 0:01:36.9]}
16... Bb4 {[%clk 0:00:30.8]} 17. Qg5 {[%clk 0:01:31.5]} 17... Qd4 {[%clk
0:00:24.3]} 18. Nxa6 {[%clk 0:01:26.5]} 18... bxa6 {[%clk 0:00:24.8]} 19. Kc2
{[%clk 0:01:11]} 19... Bxh3 {[%clk 0:00:18.3]} 20. gxh3 {[%clk 0:01:07.9]} 20...
Qf2+ {[%clk 0:00:16.6]} 21. Kb3 {[%clk 0:01:09]} 21... Qe2 {[%clk 0:00:14.4]}
22. Kxb4 {[%clk 0:00:56.6]} 22... Qxd3 {[%clk 0:00:11.9]} 23. Bxf4 {[%clk
0:00:54.2]} 23... a5+ {[%clk 0:00:08.2]} 24. Kxa5 {[%clk 0:00:50.5]} 24... Qxc4
{[%clk 0:00:08.1]} 25. Rac1 {[%clk 0:00:44.6]} 25... Qxa2+ {[%clk 0:00:06]} 26.
Kb4 {[%clk 0:00:43.6]} 26... a5+ {[%clk 0:00:05.9]} 27. Kc3 {[%clk 0:00:43.7]}
27... Qa4 {[%clk 0:00:04.9]} 28. Qc5 {[%clk 0:00:42.5]} 28... Rb8 {[%clk
0:00:02.1]} 29. Bxb8 {[%clk 0:00:40.9]} 1-0

[Event "*** Titled Tuesday 3|2 Blitz"]
[Site "Chess.com"]
[Date "2016.03.01"]
[Round "2"]
[White "Fins0905"]
[Black "FairChess_on_YouTube"]
[Result "0-1"]
[WhiteElo "2440"]
[BlackElo "2747"]
[TimeControl "180+2"]
[EndTime "17:19:48 PST"]
[Termination "FairChess_on_YouTube won on time"]

1. d4 {[%clk 0:03:01.9]} 1... d5 {[%clk 0:03:00.5]} 2. c4 {[%clk 0:03:02.5]}
2... c6 {[%clk 0:03:02]} 3. Nf3 {[%clk 0:03:03.1]} 3... Nf6 {[%clk 0:03:03.2]}
4. Qc2 {[%clk 0:03:03]} 4... dxc4 {[%clk 0:03:03]} 5. Qxc4 {[%clk 0:03:03.6]}
5... Bf5 {[%clk 0:03:03.9]} 6. g3 {[%clk 0:03:03.4]} 6... e6 {[%clk 0:03:04.9]}
7. Bg2 {[%clk 0:03:03.8]} 7... Be7 {[%clk 0:03:05.4]} 8. O-O {[%clk 0:03:04.8]}
8... O-O {[%clk 0:03:06.5]} 9. e3 {[%clk 0:03:05.1]} 9... Na6 {[%clk 0:03:02.5]}
10. a3 {[%clk 0:02:48]} 10... Nc7 {[%clk 0:02:56.1]} 11. Rd1 {[%clk 0:02:44.9]}
11... Qd5 {[%clk 0:02:49.8]} 12. Qe2 {[%clk 0:02:40.2]} 12... Qb5 {[%clk
0:02:49.5]} 13. Qxb5 {[%clk 0:02:25.5]} 13... Nxb5 {[%clk 0:02:50.3]} 14. Nc3
{[%clk 0:02:17.5]} 14... Nxc3 {[%clk 0:02:38.2]} 15. bxc3 {[%clk 0:02:19.4]}
15... Nd5 {[%clk 0:02:30.8]} 16. Bd2 {[%clk 0:02:09.8]} 16... Nb6 {[%clk
0:02:27]} 17. Bf1 {[%clk 0:01:54.7]} 17... Na4 {[%clk 0:02:14.3]} 18. c4 {[%clk
0:01:42.7]} 18... c5 {[%clk 0:02:08.9]} 19. Ne5 {[%clk 0:01:28]} 19... Rac8
{[%clk 0:02:04.1]} 20. d5 {[%clk 0:01:11.7]} 20... f6 {[%clk 0:01:43.9]} 21. Nf3
{[%clk 0:00:37.7]} 21... exd5 {[%clk 0:01:38.5]} 22. cxd5 {[%clk 0:00:38.6]}
22... Be4 {[%clk 0:01:39.5]} 23. d6 {[%clk 0:00:29]} 23... Bxd6 {[%clk
0:01:35.2]} 24. Nh4 {[%clk 0:00:29.8]} 24... Be5 {[%clk 0:01:31.2]} 25. Rac1
{[%clk 0:00:25.4]} 25... Nb2 {[%clk 0:01:23.2]} 26. Re1 {[%clk 0:00:26.2]} 26...
Nd3 {[%clk 0:01:23.6]} 27. Rc4 {[%clk 0:00:19.5]} 27... f5 {[%clk 0:01:12.8]}
28. Bxd3 {[%clk 0:00:15.8]} 28... Bxd3 {[%clk 0:01:13.4]} 29. Ra4 {[%clk
0:00:14.6]} 29... a6 {[%clk 0:01:07.2]} 30. Nf3 {[%clk 0:00:13.2]} 30... Bf6
{[%clk 0:01:08.1]} 31. Rc1 {[%clk 0:00:12.8]} 31... Be4 {[%clk 0:01:04.7]} 32.
Ne1 {[%clk 0:00:09.9]} 32... Rfd8 {[%clk 0:01:05]} 33. Ba5 {[%clk 0:00:10.6]}
33... Rd7 {[%clk 0:00:59.9]} 34. f3 {[%clk 0:00:09.3]} 34... Bd5 {[%clk
0:00:58.9]} 35. Rf4 {[%clk 0:00:05.3]} 35... Bg5 {[%clk 0:00:57.2]} 0-1

[Event "*** Titled Tuesday 3|2 Blitz"]
[Site "Chess.com"]
[Date "2016.03.01"]
[Round "2"]
[White "jcibarra"]
[Black "SenseiJulio"]
[Result "0-1"]
[WhiteElo "2490"]
[BlackElo "2628"]
[TimeControl "180+2"]
[EndTime "17:19:49 PST"]
[Termination "SenseiJulio won by resignation"]

1. e4 {[%clk 0:03:01.9]} 1... e6 {[%clk 0:03:00.3]} 2. d4 {[%clk 0:03:01.1]}
2... d5 {[%clk 0:03:01.7]} 3. Bd3 {[%clk 0:03:01.9]} 3... Be7 {[%clk 0:02:57.6]}
4. e5 {[%clk 0:02:48.1]} 4... c5 {[%clk 0:02:54.6]} 5. c3 {[%clk 0:02:44.5]}
5... Nc6 {[%clk 0:02:54.9]} 6. Ne2 {[%clk 0:02:42]} 6... f6 {[%clk 0:02:42]} 7.
f4 {[%clk 0:02:36.4]} 7... Nh6 {[%clk 0:02:37.8]} 8. O-O {[%clk 0:02:32.7]} 8...
cxd4 {[%clk 0:02:37.5]} 9. cxd4 {[%clk 0:02:28.2]} 9... Qb6 {[%clk 0:02:38.6]}
10. Nbc3 {[%clk 0:02:18.5]} 10... Nxd4 {[%clk 0:02:19.4]} 11. Nxd4 {[%clk
0:02:06.1]} 11... Qxd4+ {[%clk 0:02:21.3]} 12. Kh1 {[%clk 0:02:07.5]} 12... Qb6
{[%clk 0:02:18.5]} 13. Qh5+ {[%clk 0:01:54]} 13... Nf7 {[%clk 0:02:11.2]} 14.
exf6 {[%clk 0:01:27.2]} 14... Bxf6 {[%clk 0:01:51.5]} 15. f5 {[%clk 0:01:28.1]}
15... a6 {[%clk 0:00:43.9]} 16. Re1 {[%clk 0:01:12.6]} 16... Qf2 {[%clk
0:00:35]} 17. Bg5 {[%clk 0:00:43.9]} 17... g6 {[%clk 0:00:15.9]} 18. fxg6 {[%clk
0:00:19.2]} 18... hxg6 {[%clk 0:00:17.8]} 19. Qxg6 {[%clk 0:00:18.9]} 19... Qg3
{[%clk 0:00:17.3]} 20. h3 {[%clk 0:00:15.1]} 20... Qxg5 {[%clk 0:00:17.7]} 21.
Nxd5 {[%clk 0:00:13.4]} 21... Qxd5 {[%clk 0:00:17.3]} 22. Qxf6 {[%clk
0:00:11.9]} 22... Rxh3+ {[%clk 0:00:18.9]} 23. Kg1 {[%clk 0:00:13.2]} 23... Rxd3
{[%clk 0:00:20.5]} 24. Rf1 {[%clk 0:00:07.4]} 24... Qd4+ {[%clk 0:00:21.5]} 25.
Qxd4 {[%clk 0:00:09.1]} 25... Rxd4 {[%clk 0:00:23.4]} 26. Rf3 {[%clk 0:00:10.6]}
26... Bd7 {[%clk 0:00:24.6]} 27. Raf1 {[%clk 0:00:11.8]} 27... Bb5 {[%clk
0:00:25.4]} 28. R1f2 {[%clk 0:00:11.7]} 28... Rd1+ {[%clk 0:00:26.3]} 29. Kh2
{[%clk 0:00:12.4]} 29... Rd7 {[%clk 0:00:28]} 30. Rg3 {[%clk 0:00:07.6]} 30...
O-O-O {[%clk 0:00:28.6]} 0-1

[Event "*** Titled Tuesday 3|2 Blitz"]
[Site "Chess.com"]
[Date "2016.03.01"]
[Round "2"]
[White "Izoria123"]
[Black "pKiLz5Rn9b"]
[Result "1-0"]
[WhiteElo "2566"]
[BlackElo "2494"]
[TimeControl "180+2"]
[EndTime "17:20:28 PST"]
[Termination "Izoria123 won by resignation"]

1. e4 {[%clk 0:02:56.2]} 1... e6 {[%clk 0:03:01.4]} 2. d4 {[%clk 0:02:56.8]}
2... d5 {[%clk 0:03:03.1]} 3. Nc3 {[%clk 0:02:58.3]} 3... Nf6 {[%clk 0:03:04.6]}
4. Bg5 {[%clk 0:02:58.7]} 4... Be7 {[%clk 0:03:05.7]} 5. e5 {[%clk 0:02:59.4]}
5... Nfd7 {[%clk 0:03:07.2]} 6. h4 {[%clk 0:03:01.1]} 6... h6 {[%clk 0:03:08.1]}
7. Bxe7 {[%clk 0:03:01]} 7... Qxe7 {[%clk 0:03:10]} 8. f4 {[%clk 0:02:58.4]}
8... O-O {[%clk 0:03:07.9]} 9. Nf3 {[%clk 0:02:58.8]} 9... c5 {[%clk 0:03:05.1]}
10. Qd2 {[%clk 0:02:57.2]} 10... Nc6 {[%clk 0:03:04.4]} 11. dxc5 {[%clk
0:02:57.6]} 11... f6 {[%clk 0:03:05.9]} 12. exf6 {[%clk 0:02:57.9]} 12... Nxf6
{[%clk 0:03:07.8]} 13. O-O-O {[%clk 0:02:53.5]} 13... Qxc5 {[%clk 0:03:09.2]}
14. Bd3 {[%clk 0:02:49]} 14... Nh5 {[%clk 0:03:09.7]} 15. Ne2 {[%clk 0:02:48]}
15... Qd6 {[%clk 0:02:42.4]} 16. g3 {[%clk 0:02:47.9]} 16... e5 {[%clk
0:02:36.2]} 17. Nxe5 {[%clk 0:02:47.9]} 17... Nxe5 {[%clk 0:02:37.2]} 18. fxe5
{[%clk 0:02:49.5]} 18... Qxe5 {[%clk 0:02:39.1]} 19. Rde1 {[%clk 0:02:32.9]}
19... Nxg3 {[%clk 0:02:29.1]} 20. Nxg3 {[%clk 0:02:29.1]} 20... Qxg3 {[%clk
0:02:31]} 21. Rhg1 {[%clk 0:02:28.4]} 21... Qxh4 {[%clk 0:02:26.9]} 22. Qg2
{[%clk 0:02:18.9]} 22... Qg5+ {[%clk 0:02:18.3]} 23. Qxg5 {[%clk 0:02:18.8]}
23... hxg5 {[%clk 0:02:20.2]} 24. Rxg5 {[%clk 0:02:19.9]} 24... Bd7 {[%clk
0:02:19.7]} 25. Rxd5 {[%clk 0:02:11.2]} 25... Bc6 {[%clk 0:02:21.1]} 26. Rg5
{[%clk 0:02:06.8]} 26... Rad8 {[%clk 0:01:36.3]} 27. Reg1 {[%clk 0:01:57.3]}
27... Rf4 {[%clk 0:00:45.4]} 28. Rxg7+ {[%clk 0:01:57.9]} 28... Kf8 {[%clk
0:00:46.7]} 29. Rh7 {[%clk 0:01:58.1]} 29... Rd7 {[%clk 0:00:38.6]} 30. Rh8+
{[%clk 0:01:48.8]} 30... Ke7 {[%clk 0:00:39.7]} 31. b3 {[%clk 0:01:42.6]} 31...
Rf2 {[%clk 0:00:37.9]} 32. Rg6 {[%clk 0:01:39.9]} 32... Bd5 {[%clk 0:00:21.6]}
33. Bb5 {[%clk 0:01:26.1]} 33... Rc7 {[%clk 0:00:21.4]} 34. Bd3 {[%clk
0:01:24.2]} 34... Bf7 {[%clk 0:00:19.8]} 35. Rg3 {[%clk 0:01:23.2]} 35... a5
{[%clk 0:00:20.7]} 36. Rh7 {[%clk 0:01:20.4]} 36... a4 {[%clk 0:00:21.9]} 37.
Bc4 {[%clk 0:01:16.8]} 37... axb3 {[%clk 0:00:23.4]} 38. axb3 {[%clk 0:01:18.2]}
38... Kf8 {[%clk 0:00:19.2]} 39. Bxf7 {[%clk 0:01:18.1]} 39... Rcxf7 {[%clk
0:00:19.9]} 40. Rxf7+ {[%clk 0:01:19]} 40... Rxf7 {[%clk 0:00:21.4]} 41. Re3
{[%clk 0:01:20.3]} 41... Rf6 {[%clk 0:00:17.4]} 42. Kb2 {[%clk 0:01:21]} 42...
Kf7 {[%clk 0:00:12.5]} 43. Ka3 {[%clk 0:01:20.6]} 43... Rb6 {[%clk 0:00:13.1]}
44. c4 {[%clk 0:01:19.9]} 44... Kf6 {[%clk 0:00:13]} 45. Ka4 {[%clk 0:01:19.2]}
45... Kf5 {[%clk 0:00:13.3]} 46. c5 {[%clk 0:01:18.9]} 46... Rc6 {[%clk
0:00:12.8]} 47. Kb5 {[%clk 0:01:20.1]} 47... Kf6 {[%clk 0:00:14.1]} 48. b4
{[%clk 0:01:20.9]} 48... Kf7 {[%clk 0:00:13.6]} 49. Re1 {[%clk 0:01:19.2]} 49...
Rf6 {[%clk 0:00:12.5]} 50. Ra1 {[%clk 0:01:17.2]} 50... Ke6 {[%clk 0:00:13.5]}
51. Ra7 {[%clk 0:01:18]} 51... Rf7 {[%clk 0:00:14.3]} 52. Kb6 {[%clk 0:01:19.3]}
52... Kd5 {[%clk 0:00:15.7]} 53. Rxb7 {[%clk 0:01:20.2]} 53... Rf6+ {[%clk
0:00:16.5]} 54. Kb5 {[%clk 0:01:21.4]} 1-0

[Event "*** Titled Tuesday 3|2 Blitz"]
[Site "Chess.com"]
[Date "2016.03.01"]
[Round "2"]
[White "FrankieJay"]
[Black "chesstatour"]
[Result "0-1"]
[WhiteElo "2226"]
[BlackElo "2003"]
[TimeControl "180+2"]
[EndTime "17:20:28 PST"]
[Termination "chesstatour won on time"]

1. e4 {[%clk 0:03:01.9]} 1... c6 {[%clk 0:02:55.6]} 2. d4 {[%clk 0:03:02.5]}
2... d5 {[%clk 0:02:56.4]} 3. e5 {[%clk 0:03:03.6]} 3... Bf5 {[%clk 0:02:56.8]}
4. Nf3 {[%clk 0:03:04.8]} 4... e6 {[%clk 0:02:58.3]} 5. Be2 {[%clk 0:03:06.2]}
5... Nd7 {[%clk 0:02:58.1]} 6. O-O {[%clk 0:03:07.3]} 6... c5 {[%clk 0:02:59.5]}
7. Be3 {[%clk 0:03:05.3]} 7... Rc8 {[%clk 0:03:00.1]} 8. Nc3 {[%clk 0:02:58.4]}
8... Ne7 {[%clk 0:02:57.3]} 9. dxc5 {[%clk 0:02:50.2]} 9... Nxc5 {[%clk
0:02:53.8]} 10. Nb5 {[%clk 0:02:48]} 10... Nc6 {[%clk 0:02:50.6]} 11. b4 {[%clk
0:02:28.9]} 11... Nd7 {[%clk 0:01:37.6]} 12. a3 {[%clk 0:01:59]} 12... a6 {[%clk
0:01:34.6]} 13. Nbd4 {[%clk 0:01:59.9]} 13... Bg6 {[%clk 0:01:24.4]} 14. Nxc6
{[%clk 0:01:56.6]} 14... Rxc6 {[%clk 0:01:25.3]} 15. Rc1 {[%clk 0:01:57.1]}
15... Be7 {[%clk 0:01:13.9]} 16. c4 {[%clk 0:01:57.9]} 16... dxc4 {[%clk
0:01:06]} 17. Rxc4 {[%clk 0:01:59.8]} 17... Rxc4 {[%clk 0:01:00]} 18. Bxc4
{[%clk 0:02:01.7]} 18... O-O {[%clk 0:00:52.8]} 19. Qb3 {[%clk 0:01:40.6]} 19...
Nb6 {[%clk 0:00:16.3]} 20. Bxe6 {[%clk 0:01:40.7]} 20... Kh8 {[%clk 0:00:07.7]}
21. Rd1 {[%clk 0:01:22.9]} 21... Qc7 {[%clk 0:00:07.6]} 22. Rc1 {[%clk
0:01:24.3]} 22... Qb8 {[%clk 0:00:07.6]} 23. Bd5 {[%clk 0:01:20.3]} 23... Nxd5
{[%clk 0:00:07.7]} 24. Qxd5 {[%clk 0:01:22.2]} 24... Rd8 {[%clk 0:00:06.3]} 25.
Qc4 {[%clk 0:01:18.5]} 25... b5 {[%clk 0:00:06.4]} 26. Qc6 {[%clk 0:01:08.5]}
26... Qa8 {[%clk 0:00:04.6]} 27. h3 {[%clk 0:01:03.9]} 27... Be4 {[%clk
0:00:02.9]} 28. Qxa8 {[%clk 0:01:04]} 28... Rxa8 {[%clk 0:00:03.7]} 29. Nd4
{[%clk 0:01:05.3]} 29... Bd3 {[%clk 0:00:03.2]} 30. Rc7 {[%clk 0:01:04.4]} 30...
Re8 {[%clk 0:00:02.2]} 31. Nc6 {[%clk 0:01:03]} 31... Bf8 {[%clk 0:00:03]} 32.
Rxf7 {[%clk 0:01:03.8]} 32... Kg8 {[%clk 0:00:03.9]} 33. Ra7 {[%clk 0:01:03.6]}
33... Be4 {[%clk 0:00:05.1]} 34. Rxa6 {[%clk 0:00:53.9]} 34... Bxc6 {[%clk
0:00:06]} 0-1

[Event "*** Titled Tuesday 3|2 Blitz"]
[Site "Chess.com"]
[Date "2016.03.01"]
[Round "2"]
[White "Iwannabetheguy"]
[Black "Gau_truc_lon"]
[Result "0-1"]
[WhiteElo "2017"]
[BlackElo "2156"]
[TimeControl "180+2"]
[EndTime "17:20:37 PST"]
[Termination "Gau_truc_lon won by resignation"]

1. e4 {[%clk 0:03:01.9]} 1... e6 {[%clk 0:02:59.4]} 2. d4 {[%clk 0:03:01.8]}
2... d5 {[%clk 0:03:00.8]} 3. Nc3 {[%clk 0:03:03.1]} 3... Nf6 {[%clk 0:03:01.7]}
4. Bg5 {[%clk 0:03:02.8]} 4... dxe4 {[%clk 0:03:02.2]} 5. Nxe4 {[%clk
0:03:00.4]} 5... Be7 {[%clk 0:03:02.9]} 6. Bxf6 {[%clk 0:02:58.9]} 6... Bxf6
{[%clk 0:03:04.4]} 7. Nf3 {[%clk 0:02:58.4]} 7... Nd7 {[%clk 0:03:05.9]} 8. Bd3
{[%clk 0:02:53.6]} 8... Be7 {[%clk 0:03:06.7]} 9. O-O {[%clk 0:02:51.7]} 9...
O-O {[%clk 0:03:07]} 10. Re1 {[%clk 0:02:39.6]} 10... c5 {[%clk 0:03:07.5]} 11.
dxc5 {[%clk 0:02:34.1]} 11... Nxc5 {[%clk 0:03:08.6]} 12. Nxc5 {[%clk
0:02:29.6]} 12... Bxc5 {[%clk 0:03:10.5]} 13. Qe2 {[%clk 0:02:22.5]} 13... g6
{[%clk 0:03:06.6]} 14. Ne5 {[%clk 0:02:16.3]} 14... Qh4 {[%clk 0:02:52.6]} 15.
g3 {[%clk 0:02:06.2]} 15... Qg5 {[%clk 0:02:45.9]} 16. h4 {[%clk 0:02:00.2]}
16... Qxg3+ {[%clk 0:02:45.5]} 17. Kf1 {[%clk 0:01:55.5]} 17... Qxh4 {[%clk
0:02:42.2]} 18. Qf3 {[%clk 0:01:48.9]} 18... f5 {[%clk 0:02:10.9]} 19. Rad1
{[%clk 0:01:42.6]} 19... Rb8 {[%clk 0:02:03.9]} 20. a4 {[%clk 0:01:39.1]} 20...
b6 {[%clk 0:01:53.1]} 21. Bc4 {[%clk 0:01:29.1]} 21... Bb7 {[%clk 0:01:49.4]}
22. Bxe6+ {[%clk 0:01:23.3]} 22... Kh8 {[%clk 0:01:50.8]} 23. Qg3 {[%clk
0:01:13.4]} 23... Qh1+ {[%clk 0:01:39.6]} 24. Ke2 {[%clk 0:01:12.4]} 24... Qe4+
{[%clk 0:01:40.7]} 25. Kd2 {[%clk 0:01:11]} 25... Rbd8+ {[%clk 0:01:36.6]} 26.
Kc1 {[%clk 0:01:10.2]} 26... Rxd1+ {[%clk 0:01:34]} 27. Rxd1 {[%clk 0:01:09.5]}
27... Qxa4 {[%clk 0:01:30.7]} 28. Nf7+ {[%clk 0:01:04.6]} 28... Rxf7 {[%clk
0:01:24.5]} 29. Bxf7 {[%clk 0:01:04.4]} 29... Qa1+ {[%clk 0:01:11.1]} 30. Kd2
{[%clk 0:01:05.3]} 30... Qa5+ {[%clk 0:01:12]} 31. Qc3+ {[%clk 0:01:05.5]} 31...
Qxc3+ {[%clk 0:01:11.9]} 32. Kxc3 {[%clk 0:01:06.7]} 32... Bxf2 {[%clk
0:01:06.6]} 33. Rd7 {[%clk 0:01:03]} 33... Be4 {[%clk 0:01:05.8]} 34. Rxa7
{[%clk 0:00:57.2]} 34... g5 {[%clk 0:00:57.2]} 35. Be6 {[%clk 0:00:33.2]} 35...
g4 {[%clk 0:00:55.1]} 36. Kd2 {[%clk 0:00:28.1]} 36... g3 {[%clk 0:00:38.7]} 37.
Ke2 {[%clk 0:00:28.6]} 37... f4 {[%clk 0:00:40.1]} 38. Bg4 {[%clk 0:00:21.5]}
38... Bc5 {[%clk 0:00:37.8]} 39. Bf3 {[%clk 0:00:21.5]} 39... g2 {[%clk
0:00:34.9]} 40. Bxg2 {[%clk 0:00:19.7]} 40... Bxg2 {[%clk 0:00:36.8]} 41. Rf7
{[%clk 0:00:20.6]} 41... f3+ {[%clk 0:00:36.4]} 42. Rxf3 {[%clk 0:00:21.4]}
42... Bxf3+ {[%clk 0:00:38.3]} 43. Kxf3 {[%clk 0:00:23]} 43... Kg7 {[%clk
0:00:39.3]} 44. c3 {[%clk 0:00:23.5]} 44... Kf6 {[%clk 0:00:38.4]} 45. b4 {[%clk
0:00:23.7]} 45... Bd6 {[%clk 0:00:39.3]} 46. c4 {[%clk 0:00:24.3]} 46... Bxb4
{[%clk 0:00:39.6]} 47. Kf4 {[%clk 0:00:24.6]} 47... Bc5 {[%clk 0:00:40.4]} 48.
Kf3 {[%clk 0:00:25.7]} 48... Kf5 {[%clk 0:00:41.8]} 49. Kg3 {[%clk 0:00:26.9]}
49... Ke4 {[%clk 0:00:42.8]} 50. Kh3 {[%clk 0:00:27.6]} 50... Kd4 {[%clk
0:00:44.6]} 51. Kg2 {[%clk 0:00:28.5]} 51... Kxc4 {[%clk 0:00:46.5]} 0-1